bitfinex-derivatives/quotes_BTCF0:USTF0_20250424
["timestamp","ask_amount","ask_price","bid_price","bid_amount"]
[1745528624918,0.26897893,93605.0,93604.0,0.5371481]
[1745528625318,0.26897893,93605.0,93604.0,0.6016481]
[1745528628928,0.26897893,93605.0,93604.0,0.9624481]
[1745528630730,0.26897893,93605.0,93604.0,0.2408481]
[1745528630931,0.26897893,93605.0,93604.0,0.9624481]
[1745528631526,0.26897893,93605.0,93604.0,0.2408481]
[1745528631732,0.26897893,93605.0,93604.0,0.9624481]
[1745528650247,0.26897893,93605.0,93604.0,0.8979481]
[1745528651647,0.26897893,93605.0,93604.0,0.9290481]
[1745528665558,0.26897893,93605.0,93604.0,0.5682481]
[1745528666061,0.26897893,93605.0,93604.0,0.2074481]
[1745528666252,0.26897893,93605.0,93604.0,0.5682481]
[1745528668073,0.26897893,93605.0,93604.0,0.2074481]
[1745528668571,0.26897893,93605.0,93604.0,0.5682481]
[1745528668872,0.26897893,93605.0,93604.0,0.2074481]
[1745528669173,0.26897893,93605.0,93604.0,0.5682481]
[1745528673375,0.26897893,93605.0,93604.0,0.2074481]
[1745528673577,0.26897893,93605.0,93604.0,0.5682481]
[1745528674075,0.26897893,93605.0,93604.0,0.2074481]
[1745528674275,0.26897893,93605.0,93604.0,0.5682481]
[1745528675377,0.26897893,93605.0,93604.0,0.2074481]
[1745528675676,0.26897893,93605.0,93604.0,0.5682481]
[1745528676377,0.26897893,93605.0,93604.0,0.2074481]
[1745528676577,0.26897893,93605.0,93604.0,0.5682481]
[1745528689981,0.26897893,93605.0,93604.0,0.4715881]
[1745528690183,0.26897893,93605.0,93604.0,0.3648]
[1745528690387,0.26897893,93605.0,93604.0,0.5370281]
[1745528690589,0.30177893,93605.0,93604.0,0.5370281]
[1745528691184,0.47377893,93605.0,93604.0,0.5370281]
[1745528692087,0.30177893,93605.0,93604.0,0.5370281]
[1745528714397,0.30177893,93605.0,93604.0,0.5700281]
[1745528719511,0.30177893,93605.0,93604.0,0.7475281]
[1745528719704,0.30177893,93605.0,93604.0,0.2092281]
[1745528719900,0.30177893,93605.0,93604.0,0.5700281]
[1745528722102,0.30177893,93605.0,93604.0,0.6019281]
[1745528724811,0.30177893,93605.0,93604.0,0.6327281]
[1745528725113,0.26897893,93605.0,93604.0,0.6327281]
[1745528728414,0.42,93624.0,93623.0,0.1067664]
[1745528728617,0.0331,93634.0,93626.0,0.106763]
[1745528728811,0.3111,93627.0,93626.0,0.0934001]
[1745528729917,0.3111,93627.0,93626.0,0.1257001]
[1745528731018,0.3141,93627.0,93626.0,0.1247001]
[1745528731422,0.3141,93627.0,93626.0,0.13516374]
[1745528731722,0.32226963,93627.0,93626.0,0.13516374]
[1745528732518,0.32426963,93627.0,93626.0,0.13516374]
[1745528739421,0.32426963,93627.0,93626.0,0.55006374]
[1745528739723,0.32426963,93627.0,93626.0,0.72756374]
[1745528739918,0.32426963,93627.0,93626.0,0.55006374]
[1745528740924,0.32426963,93627.0,93626.0,0.58306374]
[1745528741424,0.32426963,93627.0,93626.0,0.51776374]
[1745528745817,0.35706963,93627.0,93626.0,0.51776374]
[1745528748427,0.35706963,93627.0,93626.0,0.54896374]
[1745528753527,0.32426963,93627.0,93626.0,0.54896374]
[1745528754628,0.32226963,93627.0,93626.0,0.54896374]
[1745528754831,0.32326963,93627.0,93626.0,0.54896374]
[1745528755429,0.32226963,93627.0,93626.0,0.54896374]
[1745528755818,0.31926963,93627.0,93626.0,0.54896374]
[1745528756021,0.32026963,93627.0,93626.0,0.54896374]
[1745528758232,0.32026963,93627.0,93626.0,0.72646374]
[1745528767030,0.35246963,93627.0,93626.0,0.72646374]
[1745528769741,0.35246963,93627.0,93626.0,1.44806374]
[1745528776845,0.00163,93631.0,93630.0,0.1067585]
[1745528777046,0.28163,93631.0,93630.0,0.1067585]
[1745528777248,0.2291096,93631.0,93630.0,0.6991585]
[1745528777544,0.0334,93649.0,93635.0,0.1067528]
[1745528777747,0.22714,93636.0,93635.0,0.4675528]
[1745528778047,0.19,93636.0,93635.0,0.4645528]
[1745528778241,0.19786394,93636.0,93635.0,0.4645528]
[1745528778442,0.19786394,93636.0,93635.0,0.5306528]
[1745528778642,0.19786394,93636.0,93635.0,0.5316528]
[1745528780238,0.19886394,93636.0,93635.0,0.5356528]
[1745528780439,0.19886394,93636.0,93635.0,0.9505528]
[1745528782349,0.19886394,93636.0,93635.0,0.5897528]
[1745528782547,0.19886394,93636.0,93635.0,1.3113528]
[1745528789642,0.12531394,93636.0,93635.0,1.3113528]
[1745528804757,0.0329,93654.0,93653.0,0.1067322]
[1745528805061,0.3229,93654.0,93653.0,0.5329322]
[1745528805262,0.3229,93654.0,93653.0,0.9478322]
[1745528805449,0.2613605,93654.0,93653.0,0.9478322]
[1745528805757,0.0322,93672.0,93671.0,0.1067117]
[1745528805951,0.0322,93672.0,93671.0,0.8916717]
[1745528805952,0.1922,93672.0,93671.0,0.8916717]
[1745528806151,0.3958,93672.0,93671.0,0.8916717]
[1745528807459,0.3978,93672.0,93671.0,0.8916717]
[1745528808763,0.3988,93672.0,93671.0,0.90231217]
[1745528809865,0.3988,93672.0,93671.0,0.95641217]
[1745528810065,0.431,93672.0,93671.0,0.95641217]
[1745528810960,0.431,93672.0,93671.0,0.59561217]
[1745528811165,0.431,93672.0,93671.0,0.95641217]
[1745528814067,0.259,93672.0,93671.0,0.95641217]
[1745528815668,0.259,93672.0,93671.0,0.59561217]
[1745528815868,0.259,93672.0,93671.0,1.31721217]
[1745528820670,0.259,93672.0,93671.0,0.95641217]
[1745528822657,0.259,93672.0,93671.0,0.98801217]
[1745528825373,0.259,93672.0,93671.0,0.95641217]
[1745528826072,0.259,93672.0,93671.0,0.98671217]
[1745528828572,0.205756,93672.0,93671.0,0.7757]
[1745528828877,0.6124666,93672.0,93671.0,0.48026]
[1745528829073,0.7844666,93672.0,93671.0,0.48026]
[1745528830575,0.7844666,93672.0,93671.0,0.46690219]
[1745528831378,0.1067129,93670.0,93669.0,0.0533569]
[1745528831578,0.4067129,93670.0,93669.0,0.1187169]
[1745528831780,0.51347291,93670.0,93669.0,0.1187169]
[1745528831979,0.57467291,93670.0,93669.0,0.06536]
[1745528832278,0.74667291,93670.0,93669.0,0.06536]
[1745528832975,0.74767291,93670.0,93669.0,0.06536]
[1745528833274,0.1067152,93668.0,93667.0,0.0533581]
[1745528833474,0.1067152,93668.0,93667.0,0.1187181]
[1745528833475,0.4067152,93668.0,93667.0,0.1187181]
[1745528834276,0.5787152,93668.0,93667.0,0.1187181]
[1745528835079,0.5787152,93668.0,93667.0,0.06536]
[1745528835578,0.5797152,93668.0,93667.0,0.06536]
[1745528837781,0.6443152,93668.0,93667.0,0.06536]
[1745528845389,0.6443152,93668.0,93667.0,0.09816]
[1745528847685,0.6443152,93668.0,93667.0,0.08480219]
[1745528852098,0.4723152,93668.0,93667.0,0.08480219]
[1745528855598,0.4723152,93668.0,93667.0,0.11630219]
[1745528857303,0.4723152,93668.0,93667.0,0.22301849]
[1745528858005,0.4723152,93668.0,93667.0,0.20966068]
[1745528859200,0.4723152,93668.0,93667.0,0.18401367]
[1745528862303,0.4723152,93668.0,93667.0,0.07729737]
[1745528864612,0.4723152,93668.0,93667.0,0.18401367]
[1745528864807,0.301,93668.0,93667.0,0.18401367]
[1745528865807,0.4077152,93668.0,93667.0,0.18401367]
[1745528867519,0.4077152,93668.0,93667.0,0.22372759]
[1745528867814,0.4380152,93668.0,93667.0,0.22372759]
[1745528868110,0.4380152,93668.0,93667.0,0.21037026]
[1745528876424,0.4380152,93668.0,93667.0,0.14501026]
[1745528876624,0.4380152,93668.0,93667.0,0.21037026]
[1745528876833,0.301,93668.0,93667.0,0.21037026]
[1745528880527,0.301,93668.0,93667.0,0.19701293]
[1745528881129,0.4077152,93668.0,93667.0,0.19701293]
[1745528881323,0.4389152,93668.0,93667.0,0.19701293]
[1745528881523,0.3322,93668.0,93667.0,0.19701293]
[1745528885325,0.301,93668.0,93667.0,0.19701293]
[1745528886831,0.3339,93668.0,93667.0,0.19701293]
[1745528891431,0.3339,93668.0,93667.0,0.18365606]
[1745528897738,0.3645,93668.0,93667.0,0.18365606]
[1745528897940,0.3339,93668.0,93667.0,0.18365606]
[1745528900440,0.301,93668.0,93667.0,0.18365606]
[1745528902739,0.3347,93668.0,93667.0,0.18365606]
[1745528904847,0.301,93668.0,93667.0,0.18365606]
[1745528905142,0.301,93668.0,93667.0,0.29041606]
[1745528905343,0.0337,93672.0,93668.0,0.0533573]
[1745528905643,0.0337,93672.0,93671.0,0.4675117]
[1745528905644,0.1537,93672.0,93671.0,0.4675117]
[1745528906443,0.1557,93672.0,93671.0,0.4675117]
[1745528906943,0.1567,93672.0,93671.0,0.8824117]
[1745528912148,0.0011,93687.0,93686.0,0.1066947]
[1745528912448,0.27892373,93687.0,93686.0,0.8936147]
[1745528912645,0.31262373,93687.0,93686.0,0.8936147]
[1745528913150,0.31662373,93687.0,93686.0,0.8936147]
[1745528914850,0.31262373,93687.0,93686.0,0.8936147]
[1745528915046,0.31262373,93687.0,93686.0,0.8946147]
[1745528915561,0.31262373,93687.0,93686.0,1.3095147]
[1745528918056,0.34572373,93687.0,93686.0,1.3095147]
[1745528923161,0.34572373,93687.0,93686.0,1.3430147]
[1745528933364,0.34572373,93687.0,93686.0,1.3095147]
[1745528933560,0.38112373,93687.0,93686.0,1.3095147]
[1745528943173,0.38112373,93687.0,93686.0,0.9487147]
[1745528943370,0.38112373,93687.0,93686.0,0.81638191]
[1745528943666,0.38112373,93687.0,93686.0,0.92307661]
[1745528944365,0.55312373,93687.0,93686.0,0.92307661]
[1745528944965,0.55312373,93687.0,93686.0,0.5328147]
[1745528945274,0.55312373,93687.0,93686.0,0.1720147]
[1745528945475,0.55312373,93687.0,93686.0,0.5328147]
[1745528946572,0.55312373,93687.0,93686.0,0.1720147]
[1745528946773,0.55312373,93687.0,93686.0,0.5328147]
[1745528949078,0.38112373,93687.0,93686.0,0.5328147]
[1745528952781,0.38112373,93687.0,93686.0,0.42612]
[1745528953382,0.38112373,93687.0,93686.0,0.06532]
[1745528953582,0.38112373,93687.0,93686.0,0.42612]
[1745528953883,0.38112373,93687.0,93686.0,0.5328147]
[1745528954086,0.48781723,93687.0,93686.0,0.42612]
[1745528955587,0.38112373,93687.0,93686.0,0.5328147]
[1745528958989,0.48781723,93687.0,93686.0,0.5328147]
[1745528960090,0.48781723,93687.0,93686.0,0.1720147]
[1745528960390,0.48781723,93687.0,93686.0,0.5328147]
[1745528961401,0.48781723,93687.0,93686.0,0.51946072]
[1745528961690,0.48781723,93687.0,93686.0,0.41276602]
[1745528961991,0.48781723,93687.0,93686.0,0.51946072]
[1745528963585,0.48781723,93687.0,93686.0,0.55566072]
[1745528965292,0.48781723,93687.0,93686.0,0.56632107]
[1745528969390,0.48781723,93687.0,93686.0,0.45962637]
[1745528969589,0.48781723,93687.0,93686.0,0.02632637]
[1745528970294,0.65981723,93687.0,93686.0,0.38712637]
[1745528974193,0.48781723,93687.0,93686.0,0.38712637]
[1745528975699,0.48781723,93687.0,93686.0,0.37377196]
[1745528977091,0.34572373,93687.0,93686.0,0.48046666]
[1745528977294,0.27892373,93687.0,93686.0,0.48046666]
[1745528977996,0.27892373,93687.0,93686.0,0.55066666]
[1745528986004,0.31352373,93687.0,93686.0,0.55066666]
[1745528987106,0.31352373,93687.0,93686.0,0.58486666]
[1745528987708,0.31352373,93687.0,93686.0,0.63683254]
[1745528992909,0.31352373,93687.0,93686.0,0.6372147]
[1745528994109,0.31352373,93687.0,93686.0,0.2764147]
[1745528994301,0.31352373,93687.0,93686.0,0.6372147]
[1745528994911,0.31352373,93687.0,93686.0,0.2764147]
[1745528995113,0.31352373,93687.0,93686.0,0.6372147]
[1745528998706,0.31352373,93687.0,93686.0,0.6030147]
[1745529002316,0.27892373,93687.0,93686.0,0.6030147]
[1745529003014,0.31452373,93687.0,93686.0,0.6030147]
[1745529003519,0.31452373,93687.0,93686.0,0.99327661]
[1745529028822,0.31452373,93687.0,93686.0,0.97992336]
[1745529050746,0.31452373,93687.0,93686.0,0.9665701]
[1745529056044,0.31452373,93687.0,93686.0,0.94093184]
[1745529068551,0.31452373,93687.0,93686.0,0.99327661]
[1745529070155,0.31452373,93687.0,93686.0,0.96763775]
[1745529075560,0.31452373,93687.0,93686.0,0.75106191]
[1745529075758,0.48851723,93687.0,93686.0,0.81630191]
[1745529075959,0.38182373,93687.0,93686.0,0.81630191]
[1745529076154,0.55382373,93687.0,93686.0,0.81630191]
[1745529076957,0.55382373,93687.0,93686.0,0.92299661]
[1745529077357,0.66051723,93687.0,93686.0,0.81630191]
[1745529077557,0.55382373,93687.0,93686.0,0.92299661]
[1745529079962,0.55382373,93687.0,93686.0,0.5327347]
[1745529082466,0.66051723,93687.0,93686.0,0.5327347]
[1745529083874,0.66051723,93687.0,93686.0,0.42604]
[1745529084175,0.55382373,93687.0,93686.0,0.42604]
[1745529084374,0.66051723,93687.0,93686.0,0.42604]
[1745529096993,0.66051723,93687.0,93686.0,0.06524]
[1745529101495,0.66051723,93687.0,93686.0,0.1719347]
[1745529101992,0.36051723,93687.0,93686.0,0.1719347]
[1745529102182,0.67051723,93687.0,93686.0,0.1719347]
[1745529102796,0.67051723,93687.0,93686.0,0.15857999]
[1745529103286,0.67051723,93687.0,93686.0,0.19587999]
[1745529103993,0.56382373,93687.0,93686.0,0.19587999]
[1745529104795,0.67051723,93687.0,93686.0,0.19587999]
[1745529105687,0.65051723,93687.0,93686.0,0.19587999]
[1745529108701,0.65051723,93687.0,93686.0,0.17023814]
[1745529113091,0.65051723,93687.0,93686.0,0.15688301]
[1745529116497,0.65051723,93687.0,93686.0,0.19288301]
[1745529120902,0.65051723,93687.0,93686.0,0.15688301]
[1745529121490,0.65051723,93687.0,93686.0,0.11835285]
[1745529122300,0.1067049,93677.0,93676.0,0.1185924]
[1745529122497,0.3667049,93677.0,93676.0,0.1185924]
[1745529123402,0.4422049,93677.0,93676.0,0.1215924]
[1745529123702,0.4422049,93677.0,93676.0,0.14353576]
[1745529123999,0.4422049,93677.0,93676.0,0.14653576]
[1745529125295,0.4422049,93677.0,93676.0,0.0946524]
[1745529125504,0.4422049,93677.0,93676.0,0.1598924]
[1745529126604,0.4422049,93677.0,93676.0,0.1588924]
[1745529126996,0.4422049,93677.0,93676.0,0.1578924]
[1745529127393,0.4422049,93677.0,93676.0,0.1558924]
[1745529127696,0.4422049,93677.0,93676.0,0.1578924]
[1745529127896,0.4422049,93677.0,93676.0,0.1558924]
[1745529128204,0.4422049,93677.0,93676.0,0.1568924]
[1745529129001,0.4422049,93677.0,93676.0,0.1558924]
[1745529129204,0.4422049,93677.0,93676.0,0.06724]
[1745529129499,0.5489569,93677.0,93676.0,0.06724]
[1745529130097,0.7209569,93677.0,93676.0,0.06724]
[1745529130498,0.7209569,93677.0,93676.0,0.173946]
[1745529131391,0.7209569,93677.0,93676.0,0.108706]
[1745529131709,1.0817569,93677.0,93676.0,0.108706]
[1745529132705,1.0817569,93677.0,93676.0,0.107706]
[1745529133005,1.0817569,93677.0,93676.0,0.001]
[1745529133196,1.0817569,93677.0,93665.0,0.06524]
[1745529133197,0.1067174,93666.0,93665.0,0.1719575]
[1745529133403,0.4167174,93666.0,93665.0,0.1600766]
[1745529133707,0.4167174,93666.0,93665.0,0.2253166]
[1745529134097,0.5887174,93666.0,93665.0,0.2253166]
[1745529134302,0.5887174,93666.0,93665.0,0.1185991]
[1745529135910,0.5887174,93666.0,93665.0,0.06524]
[1745529136609,0.5887174,93666.0,93665.0,0.05188107]
[1745529136919,0.0533617,93661.0,93650.0,1.40708]
[1745529137113,0.1067334,93652.0,93651.0,0.13634]
[1745529137315,0.3867334,93652.0,93651.0,0.13634]
[1745529137611,0.3867334,93652.0,93651.0,0.0343]
[1745529137813,0.0533707,93645.0,93644.0,0.06524]
[1745529138008,0.0533707,93645.0,93635.0,0.1439521]
[1745529138009,0.1067516,93636.0,93635.0,0.1439521]
[1745529138204,0.4167516,93636.0,93635.0,0.2091921]
[1745529138704,0.42476648,93636.0,93635.0,0.2091921]
[1745529139208,0.42576648,93636.0,93635.0,0.2151921]
[1745529139410,0.42576648,93636.0,93635.0,0.10844]
[1745529140212,0.42576648,93636.0,93635.0,0.11444]
[1745529146620,0.42576648,93636.0,93635.0,0.07724]
[1745529146917,0.42576648,93636.0,93635.0,0.05158424]
[1745529147113,0.42576648,93636.0,93635.0,0.03822185]
[1745529147317,0.42576648,93636.0,93635.0,0.012]
[1745529147512,0.42576648,93636.0,93635.0,0.07724]
[1745529147718,0.42576648,93636.0,93635.0,0.11174]
[1745529154323,0.31901488,93636.0,93635.0,0.11174]
[1745529154523,0.5408,93655.0,93635.0,0.218536]
[1745529154830,0.1941975,93654.0,93645.0,0.47144971]
[1745529155125,0.5075666,93654.0,93646.0,0.1067]
[1745529155626,0.1067353,93652.0,93646.0,0.1067]
[1745529155812,0.1408353,93651.0,93646.0,0.1067]
[1745529156013,0.2941,93651.0,93646.0,0.1067]
[1745529156526,0.2941,93651.0,93646.0,0.1087]
[1745529156918,0.2941,93651.0,93646.0,0.1097]
[1745529158021,0.2941,93651.0,93646.0,0.1127]
[1745529161029,0.259,93651.0,93647.0,0.39026191]
[1745529161224,0.259,93651.0,93648.0,0.06524]
[1745529161421,0.259,93651.0,93648.0,0.24172]
[1745529161732,0.259,93651.0,93649.0,0.10678]
[1745529162126,0.259,93651.0,93650.0,0.17648]
[1745529163133,0.259,93651.0,93650.0,0.17948]
[1745529163636,0.26,93651.0,93650.0,0.18548]
[1745529164734,0.261,93651.0,93650.0,0.19548]
[1745529165035,0.27,93651.0,93650.0,0.83574191]
[1745529165822,0.271,93651.0,93650.0,0.83574191]
[1745529166634,0.2626412,93651.0,93650.0,0.83574191]
[1745529166837,0.2548331,93651.0,93650.0,0.83574191]
[1745529168434,0.2548331,93651.0,93650.0,0.58574191]
[1745529170944,0.2548331,93651.0,93650.0,1.30734191]
[1745529171736,0.0824661,93651.0,93650.0,1.41407761]
[1745529172040,0.0883487,93651.0,93650.0,1.41407761]
[1745529172241,0.0368,93669.0,93668.0,0.1067152]
[1745529172538,0.3068,93669.0,93668.0,0.5327552]
[1745529173330,0.3068,93669.0,93668.0,0.6122552]
[1745529174540,0.31485725,93669.0,93668.0,0.6122552]
[1745529174934,0.31485725,93669.0,93668.0,0.26191779]
[1745529175135,0.31485725,93669.0,93668.0,0.62271779]
[1745529179842,0.27517025,93669.0,93668.0,1.0129797]
[1745529184345,0.27517025,93669.0,93668.0,0.9434797]
[1745529191844,0.27517025,93669.0,93668.0,1.0142797]
[1745529196038,0.27517025,93669.0,93668.0,0.6534797]
[1745529196243,0.27517025,93669.0,93668.0,1.3750797]
[1745529205946,0.30927025,93669.0,93668.0,1.3750797]
[1745529222377,0.30927025,93669.0,93668.0,1.0142797]
[1745529223478,0.30927025,93669.0,93668.0,0.6534797]
[1745529223676,0.30927025,93669.0,93668.0,1.0142797]
[1745529225170,0.04215725,93669.0,93668.0,1.0142797]
[1745529225373,0.00782887,93671.0,93668.0,0.9440645]
[1745529225575,0.22842587,93671.0,93670.0,0.2134249]
[1745529226378,0.14043037,93671.0,93670.0,0.2134249]
[1745529226578,0.14043037,93671.0,93670.0,0.60368681]
[1745529226774,0.10552377,93671.0,93670.0,0.60368681]
[1745529227166,0.10552377,93671.0,93670.0,0.60868681]
[1745529227379,0.10552377,93671.0,93670.0,0.61368681]
[1745529229281,0.11348806,93671.0,93670.0,0.61368681]
[1745529237287,0.11348806,93671.0,93670.0,0.67888681]
[1745529243295,0.14708806,93671.0,93670.0,0.67888681]
[1745529255214,0.31908806,93671.0,93670.0,0.67888681]
[1745529263120,0.31908806,93671.0,93670.0,0.71398681]
[1745529263418,0.14708806,93671.0,93670.0,0.71398681]
[1745529263620,0.18178806,93671.0,93670.0,0.71398681]
[1745529267915,0.11348806,93671.0,93670.0,0.71398681]
[1745529268126,0.11348806,93671.0,93670.0,0.74898681]
[1745529271631,0.11348806,93671.0,93670.0,0.71398681]
[1745529271926,0.11348806,93671.0,93670.0,0.64878681]
[1745529272230,0.11348806,93671.0,93670.0,0.71398681]
[1745529272829,0.11348806,93671.0,93670.0,0.70898681]
[1745529273022,0.11348806,93671.0,93670.0,0.71398681]
[1745529284543,0.11348806,93671.0,93670.0,1.07478681]
[1745529285140,0.11348806,93671.0,93670.0,1.10978681]
[1745529308260,0.07102986,93671.0,93670.0,1.10978681]
[1745529308549,0.31,93690.0,93689.0,0.1066912]
[1745529308856,0.0379,93693.0,93692.0,0.1066878]
[1745529309050,0.3279,93693.0,93692.0,0.1066878]
[1745529309562,0.33577172,93693.0,93692.0,0.1066878]
[1745529310252,0.33577172,93693.0,93692.0,0.1455878]
[1745529310553,0.33577172,93693.0,93692.0,0.1465878]
[1745529313753,0.33577172,93693.0,93692.0,0.5073878]
[1745529316160,0.33577172,93693.0,93692.0,0.1465878]
[1745529316459,0.33577172,93693.0,93692.0,0.5073878]
[1745529321154,0.50777172,93693.0,93692.0,0.5073878]
[1745529321661,0.50777172,93693.0,93692.0,0.4684878]
[1745529323061,0.33577172,93693.0,93692.0,0.4684878]
[1745529323561,0.33577172,93693.0,93692.0,0.5063878]
[1745529325464,0.33577172,93693.0,93692.0,0.5715478]
[1745529332564,0.33577172,93693.0,93692.0,0.2107478]
[1745529332866,0.33577172,93693.0,93692.0,0.5715478]
[1745529334260,0.33577172,93693.0,93692.0,0.6076478]
[1745529334966,0.29787172,93693.0,93692.0,0.6076478]
[1745529335368,0.29787172,93693.0,93692.0,0.5942946]
[1745529339772,0.29787172,93693.0,93692.0,0.2334946]
[1745529340073,0.29787172,93693.0,93692.0,0.5942946]
[1745529359893,0.33427172,93693.0,93692.0,0.5942946]
[1745529368491,0.29787172,93693.0,93692.0,0.5942946]
[1745529382203,0.29787172,93693.0,93692.0,0.5581946]
[1745529382503,0.33817172,93693.0,93692.0,0.5581946]
[1745529390810,0.33817172,93693.0,93692.0,0.5961946]
[1745529398308,0.44485842,93693.0,93692.0,0.3618]
[1745529398513,0.44485842,93693.0,93692.0,0.42692]
[1745529398808,0.44485842,93693.0,93692.0,0.5336078]
[1745529399016,0.33817172,93693.0,93692.0,0.5336078]
[1745529399217,0.51017172,93693.0,93692.0,0.4684878]
[1745529399408,0.51017172,93693.0,93692.0,0.5715078]
[1745529399711,0.72359043,93693.0,93692.0,0.3618]
[1745529399908,0.72359043,93693.0,93692.0,0.06612]
[1745529400302,0.76229043,93693.0,93692.0,0.06612]
[1745529401215,0.76229043,93693.0,93692.0,0.1728078]
[1745529407024,0.65555842,93693.0,93692.0,0.1728078]
[1745529407924,0.65555842,93693.0,93692.0,0.06612]
[1745529408514,0.65555842,93693.0,93692.0,0.10412]
[1745529410916,0.65555842,93693.0,93692.0,0.09076561]
[1745529417933,0.65555842,93693.0,93692.0,0.13026561]
[1745529422234,0.57655842,93693.0,93692.0,0.23695341]
[1745529425139,0.57655842,93693.0,93692.0,0.13026561]
[1745529426141,0.57655842,93693.0,93692.0,0.13126561]
[1745529426437,0.57655842,93693.0,93692.0,0.49106561]
[1745529426638,0.57655842,93693.0,93692.0,0.49306561]
[1745529427038,0.57655842,93693.0,93692.0,0.47971194]
[1745529427438,0.57655842,93693.0,93692.0,0.58639974]
[1745529428443,0.57655842,93693.0,93692.0,0.58539974]
[1745529428641,0.57655842,93693.0,93692.0,0.58439974]
[1745529429040,0.57655842,93693.0,93692.0,0.58539974]
[1745529432730,0.61295842,93693.0,93692.0,0.58539974]
[1745529434046,0.61295842,93693.0,93692.0,0.22459974]
[1745529434246,0.61295842,93693.0,93692.0,0.11791194]
[1745529435645,0.61295842,93693.0,93692.0,0.22459974]
[1745529436142,0.76180373,93693.0,93688.0,0.06512]
[1745529436341,0.1066912,93689.0,93688.0,0.06512]
[1745529436543,0.3666912,93689.0,93688.0,0.00452]
[1745529436747,0.47342721,93689.0,93688.0,0.00452]
[1745529436943,0.1067072,93675.0,93674.0,0.106708]
[1745529437258,0.5387072,93675.0,93674.0,0.10292]
[1745529438141,0.6163072,93675.0,93674.0,0.10292]
[1745529438341,0.6163072,93675.0,93674.0,0.10392]
[1745529438547,0.6163072,93675.0,93674.0,0.06612]
[1745529438949,0.6163072,93675.0,93674.0,0.06512]
[1745529439255,0.1067095,93673.0,93672.0,0.3608]
[1745529439443,0.3667095,93673.0,93672.0,0.42592]
[1745529440141,0.6151095,93673.0,93672.0,0.42592]
[1745529440650,0.6161095,93673.0,93672.0,0.06512]
[1745529441852,0.5627552,93673.0,93669.0,0.0378]
[1745529442151,0.5627552,93673.0,93670.0,0.06512]
[1745529442152,0.1067117,93671.0,93670.0,0.06512]
[1745529442347,0.4167117,93671.0,93670.0,0.06512]
[1745529442750,0.4919117,93671.0,93670.0,0.06512]
[1745529443345,0.106714,93669.0,93668.0,1.40704]
[1745529443554,0.416714,93669.0,93668.0,1.47216]
[1745529444250,0.588714,93669.0,93668.0,1.47216]
[1745529445254,0.589714,93669.0,93668.0,1.47216]
[1745529446351,0.589714,93669.0,93668.0,1.5788752]
[1745529447255,0.417714,93669.0,93668.0,1.6558752]
[1745529449142,0.417714,93669.0,93668.0,1.54916]
[1745529449556,0.417714,93669.0,93668.0,1.6558752]
[1745529450342,0.417714,93669.0,93668.0,1.54916]
[1745529452547,0.417714,93669.0,93668.0,1.40704]
[1745529452861,0.778514,93669.0,93668.0,1.47212]
[1745529453159,0.950514,93669.0,93668.0,1.47212]
[1745529453458,0.989014,93669.0,93668.0,1.47212]
[1745529463758,0.989014,93669.0,93668.0,1.45876192]
[1745529464561,0.989014,93669.0,93668.0,1.39368192]
[1745529464764,0.989014,93669.0,93668.0,1.49780192]
[1745529472770,1.029114,93669.0,93668.0,1.49780192]
[1745529475968,1.029114,93669.0,93668.0,1.60451712]
[1745529476274,1.029114,93669.0,93668.0,1.49780192]
[1745529477372,1.029114,93669.0,93668.0,1.53760192]
[1745529479178,1.029114,93669.0,93668.0,1.49860192]
[1745529479479,1.066414,93669.0,93668.0,1.49860192]
[1745529485783,0.0533595,93665.0,93663.0,0.06508]
[1745529485983,0.2337795,93664.0,93663.0,0.06508]
[1745529486278,0.5137795,93664.0,93663.0,0.06508]
[1745529487881,0.5137795,93664.0,93663.0,0.06608]
[1745529488381,0.5137795,93664.0,93663.0,0.001]
[1745529488682,0.5137795,93664.0,93663.0,0.00033788]
[1745529488882,0.1067243,93660.0,93659.0,0.0383]
[1745529489082,0.7375243,93660.0,93659.0,0.02494001]
[1745529489878,0.8130243,93660.0,93659.0,0.02494001]
[1745529490874,0.8140243,93660.0,93659.0,0.02494001]
[1745529491373,0.8160243,93660.0,93659.0,0.02494001]
[1745529496286,0.4552243,93660.0,93659.0,0.06374001]
[1745529496975,0.4542243,93660.0,93659.0,0.06374001]
[1745529497182,0.4552243,93660.0,93659.0,0.06374001]
[1745529501588,0.3797243,93660.0,93659.0,0.02473267]
[1745529503288,0.3777243,93660.0,93659.0,0.02473267]
[1745529503781,0.3767243,93660.0,93659.0,0.02473267]
[1745529504185,0.3767243,93660.0,93659.0,0.02573267]
[1745529504485,0.3767243,93660.0,93659.0,0.06343267]
[1745529504686,0.3767243,93660.0,93659.0,0.06243267]
[1745529511788,0.4160243,93660.0,93659.0,0.06243267]
[1745529515691,0.4170243,93660.0,93659.0,0.06243267]
[1745529516300,0.4544243,93660.0,93659.0,0.06243267]
[1745529518099,0.4544243,93660.0,93659.0,0.03678302]
[1745529518898,0.4544243,93660.0,93659.0,0.02342383]
[1745529521391,0.1067254,93659.0,93658.0,0.10378]
[1745529521592,0.3967254,93659.0,93658.0,0.10378]
[1745529521892,0.4739254,93659.0,93658.0,0.10378]
[1745529523499,0.4739254,93659.0,93658.0,0.06508]
[1745529523697,0.1067277,93657.0,93656.0,0.00106773]
[1745529523896,0.4167277,93657.0,93656.0,0.06618773]
[1745529524997,0.4167277,93657.0,93656.0,0.06718773]
[1745529526000,0.4177277,93657.0,93656.0,0.06718773]
[1745529526403,0.4177277,93657.0,93656.0,0.06618773]
[1745529530908,0.4177277,93657.0,93656.0,0.04053678]
[1745529531909,0.4177277,93657.0,93656.0,0.02717691]
[1745529534715,0.4167277,93657.0,93656.0,0.02717691]
[1745529534912,0.4177277,93657.0,93656.0,0.02717691]
[1745529536114,0.4936277,93657.0,93656.0,0.02717691]
[1745529536619,0.4926277,93657.0,93656.0,0.02717691]
[1745529536811,0.4936277,93657.0,93656.0,0.02717691]
[1745529540021,0.4926277,93657.0,93656.0,0.02717691]
[1745529543923,0.4936277,93657.0,93656.0,0.02717691]
[1745529544311,0.3869,93657.0,93656.0,0.02717691]
[1745529544515,0.3859,93657.0,93656.0,0.02717691]
[1745529545720,0.3859,93657.0,93656.0,0.02817691]
[1745529546024,0.3859,93657.0,93656.0,0.02717691]
[1745529546223,0.3859,93657.0,93656.0,0.02817691]
[1745529546922,0.3859,93657.0,93656.0,0.02917691]
[1745529553126,0.3859,93657.0,93656.0,0.02917691]
[1745529556130,0.3859,93657.0,93656.0,0.02917691]
[1745529559428,0.3859,93657.0,93656.0,0.02817691]
[1745529559624,0.3859,93657.0,93656.0,0.02717691]
[1745529559829,0.3859,93657.0,93656.0,0.02817691]
[1745529562129,0.5579,93657.0,93656.0,0.02817691]
[1745529563632,0.6646277,93657.0,93656.0,0.02817691]